bitfinex/quotes_SOLUSD_20250216
["timestamp","ask_amount","ask_price","bid_price","bid_amount"]
[1739709868950,1.5902,192.8,192.74,0.03]
[1739709872351,82.226,192.79,192.74,0.03]
[1739709872672,82.226,192.78,192.74,0.03]
[1739709884151,82.226,192.77,192.74,0.03]
[1739709890085,83.8162,192.8,192.74,0.03]
[1739709896090,82.226,192.79,192.74,0.03]
[1739709896788,82.226,192.78,192.74,0.03]
[1739709900408,82.226,192.77,192.74,0.03]
[1739709903498,6.3134,192.79,192.74,0.03]
[1739709903499,82.226,192.76,192.74,0.03]
[1739709903694,1.6549,192.75,192.74,0.03]
[1739709904215,21.6549,192.75,192.74,0.03]
[1739709905613,35.06674853,192.75,192.74,0.03]
[1739709912514,1.6549,192.75,192.74,0.03]
[1739709913421,21.6549,192.75,192.74,0.03]
[1739709922316,35.06674853,192.75,192.74,0.03]
[1739709923923,1.6549,192.75,192.74,0.03]
[1739709924908,21.6549,192.75,192.74,0.03]
[1739709931535,20.0,192.75,192.74,0.03]
[1739709931740,1.5921,192.79,192.74,0.03]
[1739709933026,21.5921,192.79,192.74,0.03]
[1739709935411,20.0,192.79,192.74,0.03]
[1739709935611,0.063,192.81,192.74,0.03]
[1739709936827,82.6,192.78,192.74,0.03]
[1739709944328,0.063,192.81,192.74,0.03]
[1739709946843,0.063,192.81,192.74,14.44184853]
[1739709947141,0.063,192.81,192.76,13.41184853]
[1739709947927,0.063,192.81,192.78,13.41184853]
[1739709948339,0.063,192.81,192.79,6.5047]
[1739709951134,0.063,192.81,192.8,14.99704853]
[1739709951337,0.063,192.81,192.8,15.99704853]
[1739709954847,0.063,192.81,192.8,14.99704853]
[1739709956345,0.063,192.81,192.8,15.99704853]
[1739709959749,0.063,192.81,192.8,14.99704853]
[1739709962529,0.063,192.81,192.79,81.9]
[1739709964252,0.063,192.81,192.75,1.58]
[1739709964449,0.063,192.81,192.74,88.2929]
[1739709965558,0.063,192.81,192.74,82.21]
[1739709966254,55.99568235,192.87,192.74,82.21]
[1739709966553,55.99568235,192.86,192.74,82.21]
[1739709966854,55.99568235,192.86,192.76,20.0]
[1739709967242,55.99568235,192.86,192.74,0.03]
[1739709967555,55.99568235,192.86,192.74,20.03]
[1739709968338,7.6744,192.84,192.74,0.03]
[1739709970268,20.0,192.8,192.74,0.03]
[1739709973740,55.99568235,192.83,192.74,0.03]
[1739709973953,0.063,192.81,192.74,0.03]
[1739709976240,55.99568235,192.8,192.74,0.03]
[1739709980042,0.063,192.81,192.74,0.03]
[1739709982574,0.063,192.81,192.77,13.41184853]
[1739709987045,0.063,192.81,192.79,20.0]
[1739709993249,0.063,192.81,192.75,1.0]
[1739709993872,0.063,192.81,192.77,20.0]
[1739709995449,0.063,192.81,192.74,81.93]
[1739709995876,0.063,192.81,192.75,13.41184853]
[1739709997071,0.063,192.81,192.74,0.03]
[1739709999161,1.6222,192.81,192.74,0.03]
[1739710000556,1.6222,192.81,192.74,20.03]
[1739710000757,55.99568235,192.8,192.74,20.03]
[1739710001874,55.99568235,192.8,192.74,0.03]
[1739710006378,55.99568235,192.8,192.76,20.0]
[1739710007457,55.99568235,192.8,192.74,0.03]
[1739710010181,55.99568235,192.8,192.76,20.0]
[1739710011981,0.063,192.81,192.76,20.0]
[1739710012375,0.063,192.81,192.77,13.41184853]
[1739710012577,0.063,192.81,192.8,33.41184853]
[1739710014576,0.063,192.81,192.76,1.0]
[1739710015283,0.063,192.81,192.77,21.0]
[1739710017866,0.063,192.81,192.79,20.0]
[1739710023775,0.063,192.81,192.76,13.44184853]
[1739710024385,0.063,192.81,192.78,33.41184853]
[1739710030005,0.063,192.81,192.78,34.41184853]
[1739710032194,0.063,192.81,192.78,33.41184853]
[1739710033507,0.063,192.81,192.79,20.0]
[1739710033902,0.063,192.81,192.78,0.03]
[1739710052924,0.063,192.81,192.8,20.0]
[1739710062120,0.063,192.81,192.78,0.03]
[1739710062121,0.063,192.81,192.78,20.03]
[1739710062722,0.063,192.81,192.79,20.0]
[1739710063910,0.063,192.81,192.78,0.03]
[1739710072035,0.063,192.81,192.78,0.03]
[1739710078939,0.063,192.81,192.8,20.0]
[1739710079138,0.063,192.81,192.8,33.41184853]
[1739710082441,0.063,192.81,192.8,35.41184853]
[1739710082935,0.063,192.81,192.8,34.41184853]
[1739710083145,0.063,192.81,192.8,35.41184853]
[1739710086042,0.063,192.81,192.8,34.41184853]
[1739710086248,0.063,192.81,192.8,33.41184853]
[1739710086948,0.063,192.81,192.8,34.41184853]
[1739710087526,0.063,192.81,192.8,33.41184853]
[1739710091137,0.063,192.81,192.8,34.41184853]
[1739710091445,0.063,192.81,192.8,35.41184853]
[1739710092137,0.063,192.81,192.8,117.31184853]
[1739710094756,0.063,192.81,192.8,116.31184853]
[1739710094936,0.063,192.81,192.8,115.31184853]
[1739710098158,0.063,192.81,192.8,33.41184853]
[1739710103257,0.063,192.81,192.78,81.93]
[1739710103653,0.063,192.81,192.8,20.0]
[1739710103962,0.063,192.81,192.8,20.03]
[1739710105158,0.063,192.81,192.8,0.03]
[1739710144993,56.05868235,192.81,192.8,0.03]
[1739710148688,0.063,192.81,192.8,0.03]
[1739710150581,0.063,192.81,192.8,81.93]
[1739710157280,0.063,192.81,192.8,97.34184853]
[1739710158896,0.063,192.81,192.8,97.31184853]
[1739710159104,0.063,192.81,192.8,94.84184853]
[1739710160585,0.063,192.81,192.8,230.04184853]
[1739710162592,0.063,192.81,192.8,94.84184853]
[1739710162788,0.063,192.81,192.8,95.64936033]
[1739710163303,0.063,192.81,192.8,97.71459291]
[1739710166407,0.063,192.81,192.8,232.91459291]
[1739710166611,0.063,192.81,192.8,232.13708111]
[1739710170693,0.063,192.82,192.81,15.41184853]
[1739710170894,0.063,192.82,192.81,230.81922957]
[1739710171092,0.063,192.82,192.81,260.04184853]
[1739710172814,0.063,192.9,192.89,14.41184853]
[1739710172991,0.063,192.9,192.89,229.81909598]
[1739710173195,0.063,192.9,192.89,229.04184853]
[1739710173997,0.063,192.9,192.89,228.04184853]
[1739710176315,0.063,192.9,192.89,229.04184853]
[1739710178330,0.063,192.9,192.89,93.84184853]
[1739710178506,0.063,192.9,192.89,92.84184853]
[1739710187108,0.063,192.9,192.89,93.84184853]
[1739710190216,0.063,192.9,192.89,229.04184853]
[1739710190718,0.063,192.9,192.89,228.04184853]
[1739710191530,0.063,192.9,192.89,229.04184853]
[1739710202940,0.063,192.9,192.89,228.04184853]
[1739710203135,0.063,192.9,192.89,229.04184853]
[1739710204028,0.063,192.9,192.89,230.04184853]
[1739710205741,0.063,192.9,192.89,229.04184853]
[1739710206825,0.063,192.9,192.89,228.04184853]
[1739710207124,0.063,192.9,192.89,229.04184853]
[1739710207626,0.063,192.9,192.89,228.04184853]
[1739710208031,0.063,192.9,192.89,79.43]
[1739710209048,0.063,192.9,192.86,79.43]
[1739710209472,0.063,192.9,192.85,82.1]
[1739710212550,1.6479,192.89,192.85,82.1]
[1739710215159,1.6479,192.89,192.85,20.0]
[1739710215451,1.6479,192.89,192.84,20.0]
[1739710215651,1.6479,192.89,192.85,20.0]
[1739710219051,1.6479,192.89,192.82,0.03]
[1739710223245,1.7109,192.89,192.82,0.03]
[1739710223454,1.7109,192.89,192.84,20.0]
[1739710224451,1.7109,192.89,192.82,0.03]
[1739710228259,1.7109,192.89,192.83,20.0]
[1739710228469,1.7109,192.89,192.85,20.0]
[1739710229142,0.063,192.89,192.85,20.0]
[1739710234768,0.063,192.89,192.87,20.0]
[1739710238752,0.063,192.89,192.84,92.84184853]
[1739710242079,0.063,192.89,192.84,79.43]
[1739710244755,0.063,192.89,192.87,20.0]
[1739710246887,0.063,192.89,192.84,79.43]
[1739710255896,0.063,192.89,192.85,13.41184853]
[1739710257487,0.063,192.89,192.88,20.0]
[1739710259093,0.063,192.89,192.85,92.84184853]
[1739710259894,0.063,192.89,192.85,79.43]
[1739710264499,0.063,192.89,192.84,20.0]
[1739710265877,0.063,192.89,192.82,0.03]
[1739710267773,0.063,192.89,192.83,20.0]
[1739710273410,0.063,192.89,192.84,20.0]
[1739710278120,0.063,192.89,192.82,0.03]
[1739710279394,56.05868235,192.89,192.82,20.03]
[1739710283233,1.5903,192.88,192.82,20.03]
[1739710289834,1.5903,192.88,192.82,0.03]
[1739710296033,1.5903,192.88,192.82,20.03]
[1739710296207,56.05868235,192.89,192.82,20.03]
[1739710296526,56.05868235,192.89,192.82,0.03]
[1739710300132,0.063,192.89,192.82,0.03]
[1739710325359,0.063,192.89,192.82,0.03]
[1739710325954,0.063,192.89,192.82,13.44184853]
[1739710326261,0.063,192.89,192.85,20.0]
[1739710329948,0.063,192.89,192.86,20.0]
[1739710332939,0.063,192.89,192.83,79.43]
[1739710335853,0.063,192.89,192.86,20.0]
[1739710339856,0.063,192.89,192.83,79.43]
[1739710349857,0.063,192.89,192.82,0.03]
[1739710353675,56.05868235,192.89,192.82,0.03]
[1739710365686,55.99568235,192.88,192.82,0.03]
[1739710374809,56.05868235,192.88,192.82,0.03]
[1739710379199,55.99568235,192.87,192.82,0.03]
[1739710383486,55.99568235,192.86,192.82,0.03]
[1739710394019,57.53718235,192.86,192.82,0.03]
[1739710395210,55.99568235,192.85,192.82,0.03]
[1739710400626,56.05868235,192.85,192.82,0.03]
[1739710401721,55.99568235,192.84,192.82,0.03]
[1739710407222,55.99568235,192.83,192.82,0.03]
[1739710412741,20.0,192.83,192.82,0.03]
[1739710414428,0.063,192.85,192.82,0.03]
[1739710419059,82.663,192.85,192.82,0.03]
[1739710424964,82.6,192.84,192.82,0.03]
[1739710430959,82.6,192.83,192.82,0.03]
[1739710436967,1.5709,192.85,192.82,0.03]
[1739710453296,1.617492,192.85,192.82,0.03]
[1739710455580,2.617492,192.85,192.82,0.03]
[1739710461277,1.617492,192.85,192.82,0.03]
[1739710461597,2.617492,192.85,192.82,0.03]
[1739710462997,1.617492,192.85,192.82,0.03]
[1739710463193,2.617492,192.85,192.82,0.03]
[1739710463402,0.109592,192.85,192.82,0.03]
[1739710464111,20.109592,192.85,192.82,0.03]
[1739710464295,20.0,192.83,192.82,0.03]
[1739710478321,21.0,192.83,192.82,0.03]
[1739710479917,34.41184853,192.83,192.82,0.03]
[1739710484026,35.41184853,192.83,192.82,0.03]
[1739710485523,65.41184853,192.83,192.82,0.03]
[1739710488218,64.41184853,192.83,192.82,0.03]
[1739710489720,65.41184853,192.83,192.82,0.03]
[1739710490229,35.41184853,192.83,192.82,0.03]
[1739710490826,34.41184853,192.83,192.82,0.03]
[1739710491209,35.41184853,192.83,192.82,0.03]
[1739710492927,34.41184853,192.83,192.82,0.03]
[1739710493131,35.41184853,192.83,192.82,0.03]
[1739710493932,34.41184853,192.83,192.82,0.03]
[1739710494437,35.41184853,192.83,192.82,0.03]
[1739710494940,35.47484853,192.83,192.82,0.03]
[1739710496439,34.47484853,192.83,192.82,0.03]
[1739710499131,0.063,192.83,192.82,0.03]
[1739710500239,20.063,192.83,192.82,0.03]
[1739710500440,0.063,192.83,192.82,0.03]
[1739710500640,20.063,192.83,192.82,0.03]
[1739710502836,34.47484853,192.83,192.82,0.03]
[1739710504649,35.47484853,192.83,192.82,0.03]
[1739710505851,15.41184853,192.82,192.81,0.03]
[1739710506459,45.41184853,192.82,192.81,0.03]
[1739710514058,45.41184853,192.82,192.8,0.03]
[1739710514059,2.0,192.79,192.78,0.03]
[1739710514244,35.41184853,192.79,192.78,0.03]
[1739710515158,65.41184853,192.79,192.78,0.03]
[1739710518151,35.41184853,192.79,192.78,0.03]
[1739710521163,65.41184853,192.79,192.78,0.03]
[1739710521348,35.41184853,192.79,192.78,0.03]
[1739710524461,65.41184853,192.79,192.78,0.03]
[1739710524846,44.41184853,192.79,192.78,0.03]
[1739710525639,43.41184853,192.79,192.78,0.03]
[1739710525840,30.0,192.79,192.78,0.03]
[1739710526151,83.283,192.83,192.78,0.03]
[1739710526356,20.0,192.79,192.78,0.03]
[1739710528564,17.11454266,192.83,192.78,0.03]
[1739710528859,17.11454266,192.83,192.79,1.576]
[1739710531065,20.0,192.8,192.78,0.03]
[1739710532573,82.6,192.79,192.78,0.03]
[1739710532871,96.01184853,192.79,192.78,0.03]
[1739710536750,13.41184853,192.79,192.78,0.03]
[1739710537572,14.41184853,192.79,192.78,0.03]
[1739710538271,15.41184853,192.79,192.78,0.03]
[1739710540876,45.41184853,192.79,192.78,0.03]
[1739710543072,15.41184853,192.79,192.78,0.03]
[1739710546073,45.41184853,192.79,192.78,0.03]
[1739710549187,15.41184853,192.79,192.78,0.03]
[1739710550678,2.0,192.77,192.76,0.03]
[1739710550861,1.0,192.75,192.67,0.03]
[1739710551068,15.41184853,192.75,192.67,0.03]
[1739710553680,14.41184853,192.75,192.67,0.03]
[1739710555281,13.41184853,192.75,192.67,0.03]
[1739710555486,14.41184853,192.75,192.67,0.03]
[1739710558287,13.41184853,192.75,192.67,0.03]
[1739710558475,14.41184853,192.75,192.67,0.03]
[1739710559188,13.41184853,192.75,192.67,0.03]
[1739710559583,14.41184853,192.75,192.67,0.03]
[1739710560490,13.41184853,192.75,192.67,0.03]
[1739710560794,1.0,192.78,192.71,1.649]
[1739710561180,13.41184853,192.77,192.71,1.649]
[1739710561373,20.0,192.75,192.71,1.649]
[1739710562196,33.41184853,192.75,192.71,1.649]
[1739710563392,34.41184853,192.75,192.71,1.649]
[1739710564490,33.41184853,192.75,192.67,1.679]
[1739710564692,34.41184853,192.75,192.67,1.679]
[1739710564881,35.41184853,192.75,192.67,1.679]
[1739710566096,34.41184853,192.75,192.67,1.679]
[1739710566399,33.41184853,192.75,192.67,1.679]
[1739710567297,20.68338322,192.78,192.67,1.679]
[1739710567489,13.41184853,192.77,192.67,1.679]
[1739710569696,1.0,192.71,192.67,0.03]
[1739710569998,14.41184853,192.75,192.61,6.5716]
[1739710569999,1.0,192.67,192.61,6.5716]
[1739710570198,13.41184853,192.66,192.61,6.5716]
[1739710571284,14.41184853,192.66,192.61,0.03]
[1739710572503,13.41184853,192.66,192.61,0.03]
[1739710573604,82.6,192.65,192.61,0.03]
[1739710576582,13.41184853,192.64,192.61,0.03]
[1739710579598,82.6,192.63,192.61,0.03]
[1739710579915,21.69370443,192.66,192.61,0.03]
[1739710579916,82.6,192.62,192.61,0.03]
[1739710580990,96.01184853,192.62,192.61,0.03]
[1739710581590,82.6,192.62,192.61,0.03]
[1739710583010,96.01184853,192.62,192.61,0.03]
[1739710585425,13.41184853,192.62,192.61,0.03]
[1739710591401,20.69370443,192.66,192.61,0.03]
[1739710592620,13.41184853,192.65,192.61,0.03]
[1739710593319,20.69370443,192.66,192.61,0.03]
[1739710597326,82.6,192.64,192.61,0.03]
[1739710603210,82.6,192.63,192.61,0.03]
[1739710609228,82.6,192.62,192.61,0.03]
[1739710615353,13.41184853,192.65,192.61,0.03]
[1739710623231,20.69370443,192.66,192.61,0.03]
[1739710626927,103.29370443,192.66,192.61,0.03]
[1739710628133,82.6,192.66,192.62,6.2244]
[1739710632562,82.6,192.65,192.61,0.03]
[1739710634859,82.6,192.64,192.61,0.03]
[1739710635431,82.6,192.63,192.61,0.03]
[1739710642172,82.6,192.66,192.61,0.03]
[1739710651939,0.063,192.67,192.61,0.03]
[1739710662662,82.6,192.66,192.61,0.03]
[1739710666074,84.1213,192.66,192.61,0.03]
[1739710666697,82.6,192.65,192.61,0.03]
[1739710668390,82.6,192.64,192.61,0.03]
[1739710668761,82.6,192.63,192.61,0.03]
[1739710677599,82.6,192.62,192.61,0.03]
[1739710695621,82.6,192.65,192.61,0.03]
[1739710703316,82.6,192.64,192.61,0.03]
[1739710707333,82.6,192.63,192.61,0.03]
[1739710713236,82.6,192.62,192.61,0.03]
[1739710717944,82.6,192.65,192.61,0.03]
[1739710724638,18.69640435,192.66,192.61,0.03]
[1739710726647,101.29640435,192.66,192.61,0.03]
[1739710731060,82.6,192.65,192.61,0.03]
[1739710742969,82.6,192.64,192.61,0.03]
[1739710746368,0.063,192.67,192.61,0.03]
[1739710755280,0.063,192.67,192.62,20.0]
[1739710758478,0.063,192.67,192.62,21.0]
[1739710758979,0.063,192.67,192.64,20.0]
[1739710763780,0.063,192.67,192.65,20.0]
[1739710775891,0.063,192.67,192.65,26.0369]
[1739710776089,0.063,192.67,192.65,27.0369]
[1739710779793,0.063,192.67,192.65,26.0369]
[1739710780400,0.063,192.67,192.65,20.0]
[1739710788206,0.063,192.67,192.66,20.0]
[1739710788405,0.063,192.67,192.66,33.41184853]
[1739710789200,0.063,192.67,192.66,20.0]
[1739710809304,0.063,192.67,192.66,20.03]
[1739710811617,0.063,192.67,192.66,0.03]
[1739710812122,0.063,192.67,192.66,20.03]
[1739710812721,0.063,192.67,192.66,0.03]
[1739710814817,8.0724,192.66,192.65,0.03]
[1739710819725,0.063,192.67,192.65,0.03]
[1739710831753,0.063,192.67,192.65,0.03]
[1739710844064,82.6,192.66,192.65,0.03]
[1739710849847,0.063,192.67,192.65,0.03]
[1739710859881,0.01109374,192.67,192.65,0.03]
[1739710864367,82.6,192.66,192.65,0.03]
[1739710866588,0.01109374,192.67,192.65,0.03]
[1739710870568,19.43074853,192.66,192.65,0.03]
[1739710870767,21.06084853,192.66,192.65,0.03]
[1739710872693,13.41184853,192.64,192.62,0.03]
[1739710872874,14.41184853,192.63,192.62,0.03]
[1739710873268,18.31182366,192.63,192.62,0.03]
[1739710874498,17.31182366,192.63,192.62,0.03]
[1739710874805,18.31182366,192.63,192.62,0.03]
[1739710875196,17.31182366,192.63,192.62,0.03]
[1739710875695,18.31182366,192.63,192.62,0.03]
[1739710876603,17.31182366,192.63,192.62,0.03]
[1739710876783,18.31182366,192.63,192.62,0.03]
[1739710877098,17.31182366,192.63,192.62,0.03]
[1739710881401,13.41184853,192.63,192.62,0.03]
[1739710881602,7.649,192.66,192.62,0.03]
[1739710881603,1.6301,192.66,192.62,0.03]
[1739710882298,0.01109374,192.67,192.62,0.03]
[1739710886298,82.6,192.66,192.62,0.03]
[1739710889618,13.41184853,192.65,192.62,0.03]
[1739710891619,82.6,192.64,192.62,0.03]
[1739710892290,14.41184853,192.65,192.62,0.03]
[1739710892291,97.01184853,192.63,192.62,0.03]
[1739710892491,13.41184853,192.63,192.62,0.03]
[1739710893709,3.89997513,192.66,192.62,0.03]
[1739710893915,0.01109374,192.67,192.62,0.03]
[1739710901101,13.41184853,192.66,192.62,0.03]
[1739710902638,13.41184853,192.64,192.62,0.03]
[1739710903732,1.0,192.66,192.62,0.03]
[1739710903931,13.41184853,192.64,192.62,0.03]
[1739710904806,1.0,192.66,192.62,0.03]
[1739710905007,13.41184853,192.64,192.62,0.03]
[1739710906207,1.0,192.66,192.62,0.03]
[1739710906825,96.01184853,192.63,192.62,0.03]
[1739710907028,13.41184853,192.63,192.62,0.03]
[1739710912819,0.01109374,192.67,192.62,0.03]
[1739710913015,0.063,192.65,192.62,0.03]
[1739710947981,13.47484853,192.65,192.62,0.03]
[1739710948341,14.47484853,192.65,192.62,0.03]
[1739710948755,1.0,192.64,192.62,0.03]
[1739710948958,15.93794853,192.63,192.62,0.03]
[1739710949939,45.93794853,192.63,192.62,0.03]
[1739710952266,44.93794853,192.63,192.62,0.03]
[1739710953867,0.063,192.65,192.62,0.03]
[1739710954071,1.063,192.65,192.62,0.03]
[1739710954371,13.41184853,192.64,192.62,0.03]
[1739710954762,1.0,192.63,192.62,0.03]
[1739710955872,14.41184853,192.64,192.62,0.03]
[1739710956368,1.0,192.63,192.62,0.03]
[1739710956849,44.41184853,192.63,192.62,0.03]
[1739710957765,15.97094853,192.62,192.61,0.03]
[1739710957945,98.57094853,192.62,192.61,0.03]
[1739710959477,128.57094853,192.62,192.61,0.03]
[1739710960577,98.57094853,192.62,192.61,0.03]
[1739710961063,128.57094853,192.62,192.61,0.03]
[1739710962797,45.97094853,192.62,192.61,0.03]
[1739710964588,14.41184853,192.59,192.58,0.03]
[1739710964883,44.41184853,192.59,192.58,0.03]
[1739710984689,14.41184853,192.59,192.58,0.03]
[1739710986195,14.41184853,192.55,192.54,0.03]
[1739710987690,43.41184853,192.55,192.54,0.03]
[1739710988612,44.41184853,192.55,192.54,0.03]
[1739710993703,43.41184853,192.55,192.54,0.03]
[1739710993997,44.41184853,192.55,192.54,0.03]
[1739710997194,14.41184853,192.55,192.54,0.03]
[1739710998201,44.41184853,192.55,192.54,0.03]
[1739711000812,1.0,192.53,192.44,2.758]
[1739711001015,13.41184853,192.51,192.44,2.758]
[1739711004395,13.41184853,192.49,192.44,2.758]
[1739711004598,82.6,192.48,192.44,2.758]
[1739711007292,82.6,192.48,192.44,2.788]
[1739711010712,82.6,192.55,192.44,2.788]
[1739711010894,82.6,192.54,192.44,3.788]
[1739711011313,82.6,192.54,192.44,2.788]
[1739711011619,82.6,192.54,192.44,0.288]
[1739711015315,13.41184853,192.53,192.44,0.288]
[1739711016418,13.41184853,192.51,192.44,0.288]
[1739711016618,82.6,192.5,192.44,0.288]
[1739711017320,82.6,192.5,192.44,0.03]
[1739711017625,82.6,192.49,192.44,0.03]
[1739711031137,82.663,192.49,192.44,0.03]
[1739711034035,82.6,192.48,192.44,0.03]
[1739711041860,84.2448,192.48,192.44,0.03]
[1739711042020,13.41184853,192.47,192.44,0.03]
[1739711042341,82.6,192.46,192.44,0.03]
[1739711043138,13.41184853,192.45,192.44,0.03]
[1739711043325,82.6,192.46,192.44,0.03]
[1739711045948,82.6,192.45,192.44,0.03]
[1739711050281,82.663,192.49,192.44,0.03]
[1739711064769,0.063,192.49,192.44,0.03]
[1739711067761,0.063,192.49,192.44,1.03]
[1739711068163,0.063,192.49,192.44,2.4059]
[1739711069596,0.063,192.49,192.45,6.1461]
[1739711071262,0.063,192.49,192.46,1.0]
[1739711072071,0.063,192.49,192.48,21.0]
[1739711075688,0.063,192.49,192.48,36.78774853]
[1739711075877,0.063,192.49,192.48,35.78774853]
[1739711077597,0.063,192.49,192.48,22.3759]
[1739711078999,0.063,192.49,192.48,36.78774853]
[1739711089700,0.063,192.49,192.48,36.78774853]
[1739711090507,0.063,192.49,192.48,251.41774853]
[1739711097618,0.063,192.49,192.48,250.04184853]
[1739711099826,0.063,192.49,192.48,229.04184853]
[1739711100207,0.063,192.49,192.48,215.63]
[1739711100598,0.063,192.49,192.48,230.04184853]
[1739711106949,0.063,192.49,192.48,229.04184853]
[1739711107835,0.063,192.49,192.48,215.63]
[1739711108327,0.063,192.49,192.48,1.0]
[1739711109136,0.063,192.49,192.48,14.41184853]
[1739711109516,0.063,192.49,192.48,20.0]
[1739711109822,0.063,192.49,192.48,21.0]
[1739711110352,0.063,192.49,192.48,20.0]
[1739711110543,0.063,192.49,192.44,0.03]
[1739711111842,1.6481,192.48,192.44,0.03]
[1739711112047,1.6481,192.48,192.44,20.03]
[1739711115632,1.6481,192.48,192.44,0.03]
[1739711120219,82.6,192.47,192.44,0.03]
[1739711121043,6.2274,192.46,192.44,0.03]
[1739711123245,1.6165,192.45,192.44,0.03]
[1739711136840,1.6795,192.45,192.44,0.03]
[1739711152644,0.063,192.45,192.44,0.03]
[1739711168667,0.109592,192.45,192.44,0.03]
[1739711197311,14.41184853,192.44,192.42,0.03]
[1739711197596,13.41184853,192.42,192.34,0.03]
[1739711197782,1.6035,192.41,192.34,0.03]
[1739711198000,13.41184853,192.4,192.34,0.03]
[1739711201883,30.0,192.39,192.34,0.03]
[1739711203510,13.41184853,192.37,192.34,0.03]
[1739711203702,82.6,192.36,192.34,0.03]
[1739711207514,13.41184853,192.39,192.34,0.03]
[1739711207515,96.01184853,192.35,192.34,0.03]
[1739711210407,82.6,192.35,192.34,0.03]
[1739711216831,13.41184853,192.39,192.34,0.03]
[1739711217127,1.0,192.39,192.34,0.03]
[1739711217302,14.41184853,192.39,192.34,0.03]
[1739711218325,13.41184853,192.37,192.34,0.03]
[1739711218698,1.0,192.38,192.34,0.03]
[1739711218919,13.41184853,192.37,192.34,0.03]
[1739711219221,13.41184853,192.35,192.34,0.03]
[1739711223416,14.41184853,192.35,192.34,0.03]
[1739711223618,20.91914853,192.35,192.34,0.03]
[1739711224011,13.41184853,192.33,192.24,0.03]
[1739711224218,14.41184853,192.33,192.24,0.03]
[1739711224604,38.5073,192.35,192.24,0.03]
[1739711224810,1.0,192.34,192.24,0.03]
[1739711225006,13.41184853,192.33,192.24,0.03]
[1739711225224,13.41184853,192.31,192.24,0.03]
[1739711225913,82.6,192.32,192.24,0.03]
[1739711229115,1.5558,192.36,192.24,1.4959]
[1739711229312,13.41184853,192.35,192.24,1.4959]
[1739711233310,13.41184853,192.33,192.24,1.4959]
[1739711233927,13.41184853,192.33,192.24,0.03]
[1739711236709,82.6,192.32,192.24,0.03]
[1739711237630,82.6,192.32,192.25,6.3743]
[1739711237834,82.6,192.36,192.25,6.3743]
[1739711239131,82.6,192.36,192.26,1.4659]
[1739711242134,82.6,192.37,192.26,1.4659]
[1739711243736,0.063,192.36,192.28,20.0]
[1739711244039,0.063,192.36,192.3,20.0]
[1739711245026,0.063,192.36,192.3,21.0]
[1739711245539,0.063,192.36,192.32,6.2177]